Cogmind - Beta 13 @@@ ROGUE MODE // 2024.04.11 @ 16:02:40 Player: Zedx Result: Destroyed by Y-45 Defender with Beam Rifle Performance ------------- Evolutions (1) 500 Regions Visited (3) 600 Robots Destroyed (41) 205 Value Destroyed (1112) 1112 Prototype IDs (0) 0 Alien Tech Used (0) 0 Bonus (0) 0 TOTAL SCORE: 2417 Bonus ------- None Cogmind --------- Core Integrity 0/400 Matter 215/300 Energy 247/250 System Corruption 2% Temperature Cool (9) Movement Walking (120) Location -9/Storage Parts ------- > --- POWER (2) -------- Ion Engine > --- PROPULSION (2) --- Aluminum Leg Aluminum Leg > --- UTILITY (2) ------ Small Storage Unit > --- WEAPON (3) ------- Heavy Assault Rifle EMP Blaster > --- INVENTORY (8) ---- Aluminum Leg Power Shielding Peak State ------------ > --- POWER ------------ Ion Engine Light Ion Engine > --- PROPULSION ------- Aluminum Leg Aluminum Leg > --- UTILITY ---------- Small Storage Unit Signal Interpreter > --- WEAPON ----------- Beam Rifle Particle Gun Light Assault Rifle > --- INVENTORY -------- Ion Engine Light Nuclear Core Aluminum Leg Aluminum Leg Aluminum Leg Aluminum Leg Aluminum Leg Heat Sink [Rating: 12] Favorites ----------- Power Light Ion Engine Engine Light Ion Engine Power Core Light Nuclear Core Propulsion Aluminum Leg Leg Aluminum Leg Utility Small Storage Unit Device Heat Sink Storage Small Storage Unit Processor Signal Interpreter Weapon Light Assault Rifle Energy Gun Particle Gun Energy Cannon Light EM Pulse Cannon Ballistic Gun Light Assault Rifle Launcher Grenade Launcher Build | -11 -10 -9 -9 ------- Run | Yrd Mat Mat Sto Slots Evolved 2 | . . 2 . Power 1 | . . 1 . Propulsion . | . . . . Utility . | . . . . Weapon 1 | . . 1 . Parts Attached 41 | 7 4 9 21 Power 10 | 1 . 3 6 Engine 9 | 1 . 3 5 Core 1 | . . . 1 Reactor . | . . . . Propulsion 10 | 2 1 2 5 Treads . | . . . . Leg 10 | 2 1 2 5 Wheel . | . . . . Hover . | . . . . Flight . | . . . . Utility 7 | 1 2 1 3 Device 3 | . 1 1 1 Storage 2 | 1 . . 1 Processor 2 | . 1 . 1 Hackware . | . . . . Protection . | . . . . Artifact . | . . . . Weapon 14 | 3 1 3 7 Energy Gun 5 | 2 . 2 1 Energy Cannon 1 | . . . 1 Ballistic Gun 5 | 1 1 . 3 Ballistic Cannon . | . . . . Launcher 3 | . . 1 2 Special Weapon . | . . . . Impact Weapon . | . . . . Slashing Weapon . | . . . . Piercing Weapon . | . . . . Special Melee Weapon . | . . . . Unidentified Prototypes . | . . . . Parts Lost 28 | . 2 12 14 Power 7 | . . 4 3 Propulsion 8 | . 1 2 5 Utility 3 | . . 2 1 Weapon 10 | . 1 4 5 Highest Loss Streak 11 | . 2 7 11 To Critical Strikes . | . . . . Average Slot Usage (%) 85 | . 94 77 83 Engine 18 | . 14 14 21 Leg 21 | . 28 20 19 Device 3 | . 2 7 3 Storage 11 | . 14 11 10 Processor 3 | . 6 . 3 Energy Gun 13 | . 14 15 13 Ballistic Gun 10 | . 13 8 10 Naked Turns . | . . . . Heaviest Build 22 | 12 12 22 22 Greatest Support 20 | 20 20 20 20 Greatest Overweight (x) 2 | . . 1 2 Average Overweight (x) . | . . . . Largest Inventory Capacity 8 | 8 8 8 8 Average Capacity 7 | 6 8 8 7 Most Carried 8 | 5 7 7 8 Average Carried 4 | 2 4 4 5 Final Capacity 8 | 8 8 8 8 Final Carried 7 | 2 6 7 2 Class Distribution -------------------- 39% | Mutant 31% | Scavenger-Mutant 19% | Scavenger-Gunner 6% | Skirmisher 3% | Gunner Dominant Class ---------------- Mutant | -10/Materials Scavenger-Mutant | -9/Materials Scavenger-Mutant | -9/Storage Resources | -11 -10 -9 -9 ----------- Run | Yrd Mat Mat Sto Matter Collected 710 | 169 201 90 250 Remotely . | . . . . Salvage Created 1266 | . 224 330 712 Parts 80 | . 14 27 39 Haulers Intercepted . | . . . . Recyclers Shooed . | . . . . Parts Field Recycled . | . . . . Retrieved Matter . | . . . . Parts Self-Destructed . | . . . . Prevented . | . . . . Kills | -11 -10 -9 -9 ------- Run | Yrd Mat Mat Sto Combat Hostiles Destroyed 36 | . 7 10 19 Guns 28 | . 7 6 15 Cannons 2 | . . . 2 AOE 6 | . . 4 2 Classes Destroyed 8 | . 3 1 4 Worker 1 | . . . 1 Mechanic 1 | . . . 1 Operator 1 | . . . 1 Watcher 2 | . 1 1 . Swarmer 11 | . 3 5 3 Grunt 20 | . 4 4 12 Duelist 1 | . . . 1 Sentry 4 | . . 1 3 Best Kill Streak 11 | . 4 7 11 Combat Bots Only 8 | . 3 7 8 Max Kills in Single Turn 3 | . 1 3 3 Gunslinging . | . . . . Exploded 3 | . . 3 1 Melee . | . . . . Uniques/NPCs Destroyed . | . . . . Combat | -11 -10 -9 -9 -------- Run | Yrd Mat Mat Sto Hostile Shots Fired 339 | . 56 125 158 Missed 100 | . 16 42 42 Damage Taken 2723 | . 411 915 1397 Core 475 | . 62 149 264 Absorbed by Shields . | . . . . Regen/Repaired (Parts) 162 | . . . 162 Core Remaining (%) 87 | 100 75 . . Volleys Fired 96 | . 24 25 47 Largest 3 | . 2 3 3 Hottest 141 | . 70 135 141 Shots Fired 210 | . 47 58 105 Gun 197 | . 47 55 95 Cannon 6 | . . . 6 Launcher 7 | . . 3 4 Special . | . . . . Kinetic 91 | . 23 25 43 Thermal 106 | . 24 30 52 Explosive 4 | . . . 4 Electromagnetic 9 | . . 3 6 Robot Hit Streak 12 | . 5 7 12 Robot Miss Streak 6 | . 2 6 4 Penetration Max . | . . . . Secondary Targets 2 | . 1 1 . Max Gunslinging Chain 1 | . 1 1 . Shots Hit Robots 108 | . 21 30 57 Core Hits 66 | . 12 18 36 Critical Kills . | . . . . Critical Parts Destroyed . | . . . . Critical Strikes 5 | . 1 2 2 Burn 5 | . 1 2 2 Melee Attacks . | . . . . Impact . | . . . . Slashing . | . . . . Piercing . | . . . . Sneak Attacks . | . . . . Combat Hostiles . | . . . . Follow-up Attacks . | . . . . Damage Inflicted 2008 | . 257 594 1157 Guns 1300 | . 257 363 680 Cannons 117 | . . . 117 Explosions 591 | . . 231 360 Melee . | . . . . Ramming . | . . . . Kinetic 421 | . 121 113 187 Thermal 1048 | . 136 358 554 Explosive 299 | . . . 299 Electromagnetic 240 | . . 123 117 Impact . | . . . . Slashing . | . . . . Piercing . | . . . . Highest Corruption 2 | . . . 2 Average Corruption 2 | . . . 2 Corruption Purged . | . . . . Corruption Blocked . | . . . . Effects 2 | . . . 2 Message Errors 1 | . . . 1 Matter Fused 1 | . . . 1 Overload Shots . | . . . . Overflow Damage 22 | . . 12 10 Projectiles . | . . . . Explosions 22 | . . 12 10 Melee . | . . . . Knockbacks . | . . . . Impact . | . . . . Kinetic . | . . . . Secondary . | . . . . Self-Inflicted Damage 69 | . . 48 21 Shots 3 | . . 2 1 Rammed . | . . . . Targets Rammed . | . . . . Kicked . | . . . . Crushed . | . . . . Highest Temperature 485 | . 114 223 485 Average Temperature 114 | . 39 92 157 Received Heat Transfer 966 | . 162 201 603 Effects 4 | . . . 4 Shutdowns 2 | . . . 2 Energy Bleed 1 | . . . 1 Matter Decay 1 | . . . 1 Siege Activations . | . . . . Robots Corrupted . | . . . . Combat Hostiles . | . . . . Parts Fried . | . . . . Impact Corruptions . | . . . . Robots Melted . | . . . . Combat Hostiles . | . . . . Parts Melted 5 | . . 2 3 Heat Transferred 3001 | . 481 1051 1469 Parts Sabotaged . | . . . . Parts Stolen . | . . . . Parts Stripped . | . . . . Power Chain Reactions 6 | . . 4 2 Alert | -11 -10 -9 -9 ------- Run | Yrd Mat Mat Sto Peak Influence 224 | . 176 224 218 Initial 81 | . . . 81 Average 98 | . 106 113 95 Maximum Alert Level 1 | . . 1 1 Low Security (%) 94 | 100 100 97 91 Level 1 5 | . . 2 8 Level 2 . | . . . . Level 3 . | . . . . Level 4 . | . . . . Level 5 . | . . . . High Security . | . . . . Max Security . | . . . . Squads Dispatched 8 | . 2 2 4 Investigation 1 | . . . 1 Extermination . | . . . . Reinforcement 6 | . 2 2 2 Assault . | . . . . Garrison 1 | . . . 1 Intercept . | . . . . Searches Triggered . | . . . . Construction Impeded . | . . . . Haulers Reinforced . | . . . . Active Scanning Responses . | . . . . Cargo Convoy Interrupts . | . . . . Stealth | -11 -10 -9 -9 --------- Run | Yrd Mat Mat Sto Distress Signals 6 | . 1 1 4 Communications Jammed . | . . . . Distress Signals . | . . . . Times Spotted 63 | . 13 21 29 Peak Tracking Total 10 | . 8 10 9 Tactical Retreats 1 | . . 1 . Traps | -11 -10 -9 -9 ------- Run | Yrd Mat Mat Sto Traps Triggered 4 | . 1 . 3 Indirectly . | . . . . Trap Hack Attempts . | . . . . Triggered . | . . . . Disarmed . | . . . . Reprogrammed . | . . . . Reused . | . . . . Traps Extracted . | . . . . Installed . | . . . . Triggered . | . . . . Machines | -11 -10 -9 -9 ---------- Run | Yrd Mat Mat Sto Machines Disabled 2 | . . 1 1 Max in Single Turn 1 | . . 1 1 Machines Repaired . | . . . . Machines Dismantled . | . . . . Machines Sabotaged . | . . . . Overloaded Fab Kills . | . . . . Hacking | -11 -10 -9 -9 --------- Run | Yrd Mat Mat Sto Machines Accessed 5 | . 1 . 4 Terminals 3 | . 1 . 2 Fabricators . | . . . . Repair Stations 1 | . . . 1 Recycling Units . | . . . . Scanalyzers . | . . . . Garrison Access 1 | . . . 1 Total Hacks 14 | . 2 . 12 Successful 7 | . 1 . 6 Failed 7 | . 1 . 6 Catastrophic 5 | . 1 . 4 Database Lockouts . | . . . . Manual 5 | . 1 . 4 Terminals 8 | . 2 . 6 Fabricators . | . . . . Repair Stations 4 | . . . 4 Recycling Units . | . . . . Scanalyzers . | . . . . Garrison Access 2 | . . . 2 Terminal Hacks 3 | . 1 . 2 Record 2 | . . . 2 Dispatch Records 1 | . 1 . . Fabricator Hacks . | . . . . Repair Station Hacks 4 | . . . 4 Scan Component 2 | . . . 2 Repair 2 | . . . 2 Recycling Unit Hacks . | . . . . Scanalyzer . | . . . . Garrison Access Hacks . | . . . . Unauthorized Hacks . | . . . . Terminals . | . . . . Fabricators . | . . . . Repair Stations . | . . . . Recycling Units . | . . . . Scanalyzers . | . . . . Garrison Access . | . . . . Data Cores Recovered . | . . . . Used . | . . . . Hacking Detections 5 | . 1 . 4 Full Trace Events 2 | . . . 2 Feedback Events . | . . . . Feedback Blocked . | . . . . Robot Schematics Acquired . | . . . . Robots Built . | . . . . Authchips . | . . . . Time . | . . . . Total Robot Build Rating . | . . . . Part Schematics Acquired . | . . . . Parts Built . | . . . . Authchips . | . . . . Time . | . . . . Total Part Build Rating . | . . . . Parts Repaired 2 | . . . 2 Time 52 | . . . 52 Parts Recycled . | . . . . Recycled Matter . | . . . . Retrieved Matter . | . . . . Retrieved Components . | . . . . Parts Scanalyzed . | . . . . Part Schematics Acquired . | . . . . Parts Damaged . | . . . . Bothacking | -11 -10 -9 -9 ------------ Run | Yrd Mat Mat Sto Used RIF Installer . | . . . . Robots Hacked . | . . . . Non-combat . | . . . . Combat . | . . . . Robot Hacks Applied . | . . . . Relay Couplers Released . | . . . . Fabnet Peak Effective % . | . . . . Robots Rewired . | . . . . Allies Hacked . | . . . . Hacks Repelled . | . . . . Allies | -11 -10 -9 -9 -------- Run | Yrd Mat Mat Sto Total Allies . | . . . . Largest Group . | . . . . Highest-Rated Group . | . . . . Highest-Rated Ally . | . . . . Total Orders . | . . . . Ally Attacks . | . . . . Total Damage . | . . . . Kills . | . . . . Allies Corrupted . | . . . . Allies Melted . | . . . . Intel | -11 -10 -9 -9 ------- Run | Yrd Mat Mat Sto Robot Analysis Total . | . . . . Derelict Logs Recovered . | . . . . Drone Launches . | . . . . Drone Recoveries . | . . . . Exploration | -11 -10 -9 -9 ------------- Run | Yrd Mat Mat Sto Turns Passed 1882 | 62 411 344 1065 Spaces Moved 1026 | 52 265 201 508 Core 21 | 21 . . . Treads . | . . . . Legs 1005 | 31 265 201 508 Wheels . | . . . . Hover . | . . . . Flight . | . . . . Fastest Speed 50 | 50 120 120 120 Average Speed 133 | 91 120 123 148 Slowest Speed 260 | 120 120 190 260 Overloaded Moves . | . . . . Propulsion Burnouts . | . . . . Robots Hopped . | . . . . Cave-ins Triggered . | . . . . Exploration Rate (%) 28 | 4 41 12 57 Regions Visited 3 Branch Regions 1 Pre-discovered Areas . | . . . . Known Exits Taken . | . . . . Unknown Exits Taken 3 | 1 1 1 . Scrap Searched . | . . . . Spaces Dug . | . . . . Terrain Destroyed 33 | . . 7 26 Melee . | . . . . Projectile . | . . . . AOE 33 | . . 7 26 Terrain Rammed . | . . . . Walls Destroyed . | . . . . Machines Disabled . | . . . . Actions | -11 -10 -9 -9 --------- Run | Yrd Mat Mat Sto Total 1370 | 67 312 251 740 Wait 147 | . 11 5 131 Move 1023 | 51 264 200 508 Hop . | . . . . Pick Up 48 | 8 8 11 21 Fast Attach . | . . . . Attach 41 | 7 4 9 21 Detach 4 | 1 1 . 2 Swap . | . . . . Drop 6 | . . 1 5 Fire 96 | . 24 25 47 Melee . | . . . . Ram . | . . . . Kick . | . . . . Crush . | . . . . Escape Stasis 5 | . . . 5 Rewire . | . . . . Trap . | . . . . Miscellaneous . | . . . . Route ------- -11/Scrapyard -10/Materials (discovered 2 exits: [*Mat x2]) -9/Materials -9/Storage History --------- Turn | Location | Event 5 | -11/Scrapyard | Discovered new exit (range 15) 63 | -11/Scrapyard | Entered Materials 232 | -10/Materials | Discovered new exit (range 17) 283 | -10/Materials | Discovered new exit (range 12) 306 | -10/Materials | Build established: Mutant 474 | -10/Materials | Entered another Materials area 474 | -9/Materials | Evolved 2 slots: Power x1, Weapon x1 549 | -9/Materials | Discovered new exit (range 10) 633 | -9/Materials | Lost 5 parts (2p1n2w) 641 | -9/Materials | Destroyed 7 combat bots 763 | -9/Materials | Lost 7 parts (2p1n2u2w) 818 | -9/Materials | Entered Storage 1037 | -9/Storage | Garrison activated, responded to threat 1301 | -9/Storage | Repaired Lgt. Assault Rifle 1330 | -9/Storage | Repaired Sml. Storage Unit 1556 | -9/Storage | Core integrity fell below 50% 1832 | -9/Storage | Core integrity fell below 20% 1861 | -9/Storage | Destroyed 8 combat bots 1883 | -9/Storage | Destroyed by Y-45 Defender with Beam Rifle Last Messages --------------- 01855_ M-13 Machinist destroyed. 01856_ Critical hit (Burn: +37). 01856_ K-01 Serf collects debris. 01856_ U-05 Engineer lays Concrete. 01858_ K-01 Serf collects debris. 01859_ U-05 Engineer lays Concrete. 01860_ K-01 Serf collects debris. 01861_ The unstable cave ceiling collapses. 01861_ U-05 Engineer lays Concrete. 01862_ K-01 Serf collects debris. 01862_ U-05 Engineer lays Concrete. 01863_ Grenade Launcher destroyed. 01864_ K-01 Serf collects debris. 01864_ U-05 Engineer lays Concrete. 01872_ Acquired Power Shielding. 01876_ K-01 Serf collects debris. 01878_ Acquired EMP Blaster. 01878_ Aluminum Leg destroyed. 01878_ K-01 Serf collects debris. 01880_ Heat Sink destroyed. Map ----- +----------------------------------------------------+ | # #????????????# # | | # #????????????# # | | # #????????????# # | | # """ """ #????????????# ##### | | # """ """ #????????????# #???? | | # """ """ #????????????# #???? | | # #????????????# #???? | | ####+######?############ #???? | | ???# #??????# + #???? | | ???# #??????# #### +???? | | ???# #??????# ##?# #???? | | ???# #??????# ##?? #???? | | ???# ######## =% #?? #???? | | ???# ## ##? ???? | | ???#+##### ## #? ??? | | ?? ??# ?# #? ?? | | #""" # ?# %% #? ? | | #""" # ##### # ## | | #""" # #"T" % = | | # + %[! %= | | #""" # !* %! ###+ | | ??"" # = #??? | | ???" # ]] #??? | | ??? # Y #??? | | ########## "T" #??? | | # @ g #??? | | # "" # #??? | | # "T !!! # #### ####T### #??? | | # "" ! ; #??# #???##?? #??? | | # !! a# #??# #???????? #??? | | # # #??#+#?????????????? | | # # #??????????????????? | | # # #??????????????????? | | # # #??????????????????? | | ####+##### #??????????????????? | | ????????? #??????????????????? | | ?????????##+#??????????????????? | | ???????????????????????????????? | | ???????????????????????????????? | | ???????????????????????????????? | | ???????????????????????????????? | | ???????????????????????????????? | | ???????????????????????????????? | | ???????????????????????????????? | | ???????????????????????????????? | | ???????????????????????????????? | | ???????????????????????????????? | | ???????????????????????????????? | | ???????????????????????????????? | | ???????????????????????????????? | +----------------------------------------------------+ Best States ------------- Heat Dissipation 38 Energy Generation 19 Energy Capacity 400 Matter Stores 300 Matter Capacity 300 Sight Range 18 Robot Scan Range 14 Terrain Scan Density 10 Evasion (%) 55 Item Schematics ----------------- None Robot Schematics ------------------ None Fabricated ------------ Nothing Alien Tech Used ----------------- None Achievements -------------- None Challenges ------------ None Game ------ Seed AbsorptionSurgeSpear Manual? 0 Play Time 00:32:53 Cumulative 5.0 hours Start 2024.04.11 @ 15:09:57 End 2024.04.11 @ 16:02:40 Sessions 1 Manual Loads 0 Difficulty Rogue Special Mode None Game No. 10 Rogue 10 Adventurer 0 Explorer 0 Win Type - Total 0 Types 0/0/0/0/0/0/0/0/0 Lore% 13 Gallery% 10 Achievement% 10 Wizard Run 0 Options --------- Layout 1 ASCII 0 Keyboard 1 Movement Numpad Keybinds 0 Fullscreen 1 Font 24/Smallcaps Map View 50x35 Zoom Use 0% Tactical HUD 1 Map Filters NONE Filters NONE Steam 1 RUN: fb1b57f5-ae0b-485d-9ea6-cfe3488f0f2a